Department Family,Entity,Date,Expense Type,Expense Area,Supplier,Transaction Number,Amount,Description,Client,Campaign,Supplier Postcode,Supplier Type,,
Cabinet Office,Central Office of Information,03/01/12,Campaigns,Central Office of Information,The Hub,10167949,"29,335.50",External Consultancy,Calderdale PCT,Implementation of social marketing campaign for Yorkshire Cancer Network,M1 6JX,SME,,
Cabinet Office,Central Office of Information,03/01/12,Campaigns,Central Office of Information,S8080 Ltd,10167583,"41,183.40",Production Costs,Department of Energy and Climate Change,Oil and Gas Microsite convergence (s8080 build phase),SA1 8PJ,SME,,
Cabinet Office,Central Office of Information,03/01/12,PR,Central Office of Information,Blue Rubicon Ltd,10167742,"45,327.20",PR Agency Fees,Department of Health,Tobacco Control Public Relations,SE1 2DA,SME,,
Cabinet Office,Central Office of Information,03/01/12,Direct Marketing,Central Office of Information,Callcredit Marketing Solutions Limited,10167400,"23,415.22",Requested mailing,Department of Health,Tobacco Control RC3422 Fulfilment,SL9 0GA,Large,,
Cabinet Office,Central Office of Information,03/01/12,Campaigns,Central Office of Information,Ipsos MORI,10167690,"33,250.00",Research Company Costs,Department of Health,Social Care Workforce Monitor Wave 2,SE1 1FY,Large,,
Cabinet Office,Central Office of Information,03/01/12,Campaign Production,Central Office of Information,M&C Saatchi Ltd,10167746,"35,000.00",Advertising Agency Fees,Department of Health,Change for Life Maurice &Charles Saatchi Agency fees April-December 2011,W1F 9EE,SME,,
Cabinet Office,Central Office of Information,03/01/12,Campaigns,Central Office of Information,The Listening Company Ltd,10167849,"32,961.89",Inbound telephone handling: dedicated,Department of Health,Tobacco Control National Health Service Smoking Helpline 2011-12,PO1 2RX,Large,,
Cabinet Office,Central Office of Information,03/01/12,Campaigns,Central Office of Information,The Listening Company Ltd,10167780,"34,590.31",Inbound telephone handling: dedicated,Department of Health,Worth Talking About' 11/12 ,PO1 2RX,Large,,
Cabinet Office,Central Office of Information,03/01/12,Campaigns,Central Office of Information,The Listening Company Ltd,10168018,"82,898.79",Inbound telephone handling: dedicated,Department of Health,Drink Drugs Sexual Health Line April - March 2012,PO1 2RX,Large,,
Cabinet Office,Central Office of Information,03/01/12,Campaigns,Central Office of Information,TNS-BMRB,10167884,"38,220.00",Research Company Costs,Department of Health,Lung cancer early diagnosis campaign evaluation research,W5 1UA,SME,,
Cabinet Office,Central Office of Information,03/01/12,Direct Marketing,Central Office of Information,E C Group,10168054,"24,542.31",Requested mailing,Food Standards Agency,"Food Standards Agency Safer Food, Better Business orderline 2011",RM20 4DN,SME,,
Cabinet Office,Central Office of Information,03/01/12,Campaigns,Central Office of Information,Profero London Ltd,10167756,"42,494.07",Programming/Coding/Technical Testing,Home Office,Talk to FRANK: Mobile site development,NW1 0DU,SME,,
Cabinet Office,Central Office of Information,03/01/12,Postage Couriers etc,Central Office of Information,Howitt Ltd,10167803,"58,569.65",Direct mail (dedupe/suppression/mailsort/lasering/enclosing/other),Mid Essex PCT,National Health Service Summary Care Records Public Information Programme Mid Essex Primary Care Trust mailing,NG17 5FB,SME,,
Cabinet Office,Central Office of Information,03/01/12,Postage (Non Vatable),Central Office of Information,Howitt Ltd,10167804,"208,769.03",Postage (non-vatable),Mid Essex PCT,National Health Service Summary Care Records Public Information Programme Mid Essex Primary Care Trust mailing,NG17 5FB,SME,,
Cabinet Office,Central Office of Information,03/01/12,Media Fees,Central Office of Information,DLKWLowe,10167534,"100,000.00",TV Commission,RAF Cranwell,Royal Air Force August 2011 - TV Buying,SW3 3XB,Large,,
Cabinet Office,Central Office of Information,03/01/12,Campaigns,Central Office of Information,Ipsos MORI,10167710,"29,050.00",Research,The Pensions Regulator,The Pensions Regulator - Employer Compliance Regulations Compliance Survey,SE1 1FY,Large,,
Cabinet Office,Central Office of Information,03/01/12,Campaign Production,Central Office of Information,DDB London LTD,10167889,"54,575.00",Advertising Agency Fees,Training and Development Agency for Schools (TDA),Recruitment Doyle Dern Bernbach Monthly Fees 2011-12,W2 6AA,Large,,
Cabinet Office,Central Office of Information,10/01/12,Campaigns,Central Office of Information,AKQA Ltd,10167862,"38,735.55",Production Costs,Army,Army Integration Phase 2,EC1M 4BL,Large,,
Cabinet Office,Central Office of Information,10/01/12,Campaigns,Central Office of Information,AKQA Ltd,10167505,"46,042.20",Production Costs,Army,Army Integration Phase 2,EC1M 4BL,Large,,
Cabinet Office,Central Office of Information,10/01/12,Campaigns,Central Office of Information,AKQA Ltd,10167860,"48,193.20",Production Costs,Army,Army Integration Phase 2,EC1M 4BL,Large,,
Cabinet Office,Central Office of Information,10/01/12,Campaigns,Central Office of Information,Golley Slater Group,10169265,"27,404.26",Advertising Agencies,Army,Welbeck - Army budget contribution,CF10 1GS,Large,,
Cabinet Office,Central Office of Information,10/01/12,Campaign Production,Central Office of Information,Golley Slater Group,10169275,"63,382.04",Advertising Agency Fees,Army,Army 11/12 - Regional marketing and Public Relations service,CF10 1GS,Large,,
Cabinet Office,Central Office of Information,10/01/12,Campaign Production,Central Office of Information,Golley Slater Group,10169273,"69,621.00",Advertising Agency Fees,Army,Army 11/12 - Regional marketing and Public Relations service,CF10 1GS,Large,,
Cabinet Office,Central Office of Information,10/01/12,Print and Paper,Central Office of Information,Haymarket Network/Publishing Services,10168148,"68,155.00",Design/Design and Artwork,Army,Army Territorial Army - Content management,TW11 9BE,SME,,
Cabinet Office,Central Office of Information,10/01/12,Print and Paper,Central Office of Information,Haymarket Network/Publishing Services,10168137,"78,076.00",Design/Design and Artwork,Army,"Army Magazine - Issue 4,5,6 2011",TW11 9BE,SME,,
Cabinet Office,Central Office of Information,10/01/12,Campaigns,Central Office of Information,M4C,10168109,"22,308.56",Display,Army,Army Recruitment Digital Media Financial Year 11/12,WC1X 8RX,SME,,
Cabinet Office,Central Office of Information,10/01/12,Media Fees,Central Office of Information,ZenithOptimedia UK Ltd,10168025,"33,888.65",TV Comms Planning Commision,Army,Army September/October 2011 - TV Buying,W1T 2BS,SME,,
Cabinet Office,Central Office of Information,10/01/12,PPU Paper Purchases,Central Office of Information,Denmaur Papers Plc,10167875,"31,684.32",PPU Paper Purchase BS,COI Internal,N/A,ME10 3RY,SME,,
Cabinet Office,Central Office of Information,10/01/12,Campaigns,Central Office of Information,GfK NOP Ltd,10167861,"60,000.00",Research Company Costs,DEFRA Communications Directorate,National Noise Attitude Survey,SE1 9UL,Large,,
Cabinet Office,Central Office of Information,10/01/12,Campaigns,Central Office of Information,M4C,10168110,"27,067.88",Display,"Department for Business, Innovation and Skills",Student Finance (Phase 2),WC1X 8RX,SME,,
Cabinet Office,Central Office of Information,10/01/12,Campaigns,Central Office of Information,S8080 Ltd,10168150,"98,983.00",Hosting � Requirements Definition,Department of Energy and Climate Change,Virtual Staging Server and Hosting Renewal 11/12,SA1 8PJ,SME,,
Cabinet Office,Central Office of Information,10/01/12,Campaign Production,Central Office of Information,M&C Saatchi Ltd,10168008,"44,939.00",Advertising Agency Fees,Department of Health,Bowel Cancer and other types of CancerAgency fees,W1F 9EE,SME,,
Cabinet Office,Central Office of Information,10/01/12,Campaign Production,Central Office of Information,M&C Saatchi Ltd,10168006,"54,393.50",Advertising Agency Fees,Department of Health,Change for Life Summer Olympics fees Nov 11 to Mar 12,W1F 9EE,SME,,
Cabinet Office,Central Office of Information,10/01/12,Campaign Production,Central Office of Information,M&C Saatchi Ltd,10168007,"121,882.00",Advertising Agency Fees,Department of Health,Lung Cancer Agency fees 2011,W1F 9EE,SME,,
Cabinet Office,Central Office of Information,10/01/12,Campaigns,Central Office of Information,M4C,10168274,"37,648.35",Paid Search,Department of Health,Dementia Awareness Digital Media FY11.12,WC1X 8RX,SME,,
Cabinet Office,Central Office of Information,10/01/12,Campaigns,Central Office of Information,M4C,10168196,"91,269.42",Display,Department of Health,Tobacco Reinforcing Motivation Video on Demand Campaign ,WC1X 8RX,SME,,
Cabinet Office,Central Office of Information,10/01/12,Campaigns,Central Office of Information,The Listening Company Ltd,10168021,"74,541.68",Inbound telephone handling: dedicated,Department of Health,Drink Drugs Sexual Health Line April - March 2012,PO1 2RX,Large,,
Cabinet Office,Central Office of Information,10/01/12,Direct Marketing,Central Office of Information,Experian Ltd,10167898,"36,247.11",Database account mgt/maintenance fees,Driver and Vehicle Licensing Agency,Ten Year Renewal 11/12,NG80 1RH,Large,,
Cabinet Office,Central Office of Information,10/01/12,Campaigns,Central Office of Information,YouGov Plc,10168301,"21,375.00",Research Company Costs,HM Revenue and Customs,New Penalties for Self Assessment Tracking,EC1Y 8RT,SME,,
Cabinet Office,Central Office of Information,10/01/12,Campaigns,Central Office of Information,GfK NOP Ltd,10168080,"22,867.50",Research Company Costs,HMRC Communications and Marketing,Tax for Business Self Assessment Tracking 2011-2012,SE1 9UL,Large,,
Cabinet Office,Central Office of Information,10/01/12,Campaigns,Central Office of Information,GfK NOP Ltd,10167963,"32,850.00",Research Company Costs,HMRC Communications and Marketing,Tax for Business Self Assessment Tracking 2011-2012,SE1 9UL,Large,,
Cabinet Office,Central Office of Information,10/01/12,Campaigns,Central Office of Information,M4C,10168275,"34,003.41",Paid Search,Home Office,FRANK Digital Media FY11/12,WC1X 8RX,SME,,
Cabinet Office,Central Office of Information,10/01/12,Campaigns,Central Office of Information,M4C,10168201,"154,709.29",Display,Home Office,FRANK Digital Media FY11/12,WC1X 8RX,SME,,
Cabinet Office,Central Office of Information,10/01/12,Campaigns,Central Office of Information,M4C,10168263,"23,159.19",Paid Search,London & Partners,European Union Search Annual 11/12,WC1X 8RX,SME,,
Cabinet Office,Central Office of Information,10/01/12,Campaigns,Central Office of Information,M4C,10168163,"48,504.60",Display,NHS Blood and Transplant,Xmas Blood  Digital Nov - Dec 2011,WC1X 8RX,SME,,
Cabinet Office,Central Office of Information,10/01/12,Campaigns,Central Office of Information,M4C,10168161,"106,160.56",Display,NHS Blood and Transplant,New Donor Blood  Digital Oct - Nov 2011,WC1X 8RX,SME,,
Cabinet Office,Central Office of Information,10/01/12,Campaigns,Central Office of Information,Binary Vision Ltd,10167891,"34,500.00",Production Costs,RAF Cranwell,INET (Internal Royal Air Force Purchase Order reference) 4 - Maintenance,EC1M 4EH,SME,,
Cabinet Office,Central Office of Information,10/01/12,Campaigns,Central Office of Information,Golley Slater Group,10169266,"33,399.42",Advertising Agencies,RAF Cranwell,Welbeck - Royal Air Force budget contribution,CF10 1GS,Large,,
Cabinet Office,Central Office of Information,10/01/12,Campaigns,Central Office of Information,LIDA Ltd,10168100,"34,500.00",Production Costs,RAF Cranwell,INET (Internal Royal Air Force Purchase Order reference) 4 - Maintenance,W1F 9EE,SME,,
Cabinet Office,Central Office of Information,10/01/12,Campaigns,Central Office of Information,M4C,10168217,"34,672.65",Production Costs,RAF Cranwell,INET (Internal Royal Air Force Purchase Order reference) 10 - Online Advertising Creative,WC1X 8RX,SME,,
Cabinet Office,Central Office of Information,10/01/12,Campaigns,Central Office of Information,Golley Slater Group,10169264,"35,243.16",Advertising Agencies,Royal Navy,Welbeck - Royal Navy budget contribution,CF10 1GS,Large,,
Cabinet Office,Central Office of Information,10/01/12,Research,Central Office of Information,GfK NOP Ltd,10167962,"29,300.00",Market Research,The Met Office,Annual Public Perception Survey,SE1 9UL,Large,,
Cabinet Office,Central Office of Information,10/01/12,Campaigns,Central Office of Information,M4C,10168272,"41,149.61",Paid Search,The Money Advice Service,Money Advice Service Digital Marketing,WC1X 8RX,SME,,
Cabinet Office,Central Office of Information,10/01/12,Campaigns,Central Office of Information,M4C,10168238,"33,904.62",Paid Search,Training and Development Agency for Schools (TDA),Digital Media Sept - Dec,WC1X 8RX,SME,,
Cabinet Office,Central Office of Information,10/01/12,Campaigns,Central Office of Information,M4C,10168223,"66,408.07",Display,Training and Development Agency for Schools (TDA),Digital Media Sept - Dec,WC1X 8RX,SME,,
Cabinet Office,Central Office of Information,10/01/12,Campaigns,Central Office of Information,M4C,10168252,"21,973.89",Display,Visit Wales,Digital Media Wales Wants You,WC1X 8RX,SME,,
Cabinet Office,Central Office of Information,13/01/12,Campaigns,Central Office of Information,Careline Services Ltd,10169388,"817,786.00",Inbound telephone handling: dedicated,"Department for Business, Innovation and Skills",Business Improvement Contact Centre 11/12,W4 5QB,SME,,
Cabinet Office,Central Office of Information,17/01/12,Campaign Production,Central Office of Information,Golley Slater Group,10169279,"85,274.22",Advertising Agency Fees,Army,Customer Relationship Management 11/12,CF10 1GS,Large,,
Cabinet Office,Central Office of Information,17/01/12,Print and Paper,Central Office of Information,Haymarket Network/Publishing Services,10168142,"38,982.00",Design/Design and Artwork,Army,Renewing Cross Media Content (Territorial Army),TW11 9BE,SME,,
Cabinet Office,Central Office of Information,17/01/12,Campaign Production,Central Office of Information,Publicis Ltd,10168166,"150,000.00",Advertising Agency Fees,Army,Army Infantry 11/12,W1U 6AE,SME,,
Cabinet Office,Central Office of Information,17/01/12,Photocopying,Central Office of Information,Canon (UK) Ltd,10169419,"20,919.97",Photocopying/Copy charge,COI Internal,N/A,RH2 8BF,SME,,
Cabinet Office,Central Office of Information,17/01/12,Security,Central Office of Information,Emprise Services Plc - t/aPerfectus Ltd,10168310,"24,150.63",Security,COI Internal,N/A,EC1V 2NT,SME,,
Cabinet Office,Central Office of Information,17/01/12,Campaigns,Central Office of Information,M4C,10169347,"105,216.04",Poster Space,Department for Transport,Drink Drive Out of Home Campaign Dec 2011,WC1X 8RX,SME,,
Cabinet Office,Central Office of Information,17/01/12,Campaigns,Central Office of Information,M4C,10169487,"288,524.65",Radio Airtime,Department for Transport,Department For Transport Drink Drive Radio Campaign Dec 2011 - Jan 2012,WC1X 8RX,SME,,
Cabinet Office,Central Office of Information,17/01/12,Direct Marketing,Central Office of Information,Dataforce Group Ltd,10169372,"-29,638.99",Non-geographical number charges (e.g. BT 0800),Department for Work and Pensions,Pensions Info line 2011,MK9 1EA,Large,,
Cabinet Office,Central Office of Information,17/01/12,Campaigns,Central Office of Information,Dataforce Group Ltd,10167918,"29,638.99",Inbound telephone handling: dedicated,Department for Work and Pensions,Pensions Info line 2011,MK9 1EA,Large,,
Cabinet Office,Central Office of Information,17/01/12,Campaigns,Central Office of Information,Dataforce Group Ltd,10169373,"30,977.99",Inbound telephone handling: dedicated,Department for Work and Pensions,Pensions Info line 2011,MK9 1EA,Large,,
Cabinet Office,Central Office of Information,17/01/12,Campaigns,Central Office of Information,Optimisa Research Limited,10168360,"28,400.00",Research,Department of Energy & Climate Change,Explaining the Green Deal,SE1 8ER,SME,,
Cabinet Office,Central Office of Information,17/01/12,PR,Central Office of Information,Freud Communication Ltd,10167651,"48,200.00",PR Agency Costs,Department of Health,Change for Life Public Relations,W1T 3EB,SME,,
Cabinet Office,Central Office of Information,17/01/12,Direct Marketing,Central Office of Information,Fuel Data Strategies,10168033,"-35,000.00",Predictive/econometric modelling,Department of Health,Data Modelling,W1W 7RT,SME,,
Cabinet Office,Central Office of Information,17/01/12,Direct Marketing,Central Office of Information,Fuel Data Strategies,10167596,"35,000.00",Predictive/econometric modelling,Department of Health,Data Modelling,W1W 7RT,SME,,
Cabinet Office,Central Office of Information,17/01/12,Print and Paper,Central Office of Information,Howitt Ltd,10168084,"45,922.43",Acquisition stationery and print,Department of Health,Healthy Start 2011/12,NG17 5FB,SME,,
Cabinet Office,Central Office of Information,17/01/12,Print and Paper,Central Office of Information,Howitt Ltd,10168085,"97,249.57",Acquisition stationery and print,Department of Health,Healthy Start 2011/12,NG17 5FB,SME,,
Cabinet Office,Central Office of Information,17/01/12,Technical Guidance,Central Office of Information,Inventures - Capita Symonds,10167874,"149,040.00",Editorial,Department of Health,Electronic and web publications ,DL1 9HB,Large,,
Cabinet Office,Central Office of Information,17/01/12,Campaign Production,Central Office of Information,M&C Saatchi Ltd,10168341,"30,862.56",Press Post Production,Department of Health,Lung Cancer - Radio usage costs,W1F 9EE,SME,,
Cabinet Office,Central Office of Information,17/01/12,Campaigns,Central Office of Information,M4C,10169486,"23,259.37",Radio Airtime,Department of Health,Tobacco Reinforcing Motivations Radio Campaign Nov - Dec 2011,WC1X 8RX,SME,,
Cabinet Office,Central Office of Information,17/01/12,Campaigns,Central Office of Information,M4C,10169485,"23,538.03",Radio Airtime,Department of Health,Dementia Radio Campaign Dec 5-18 2011,WC1X 8RX,SME,,
Cabinet Office,Central Office of Information,17/01/12,Campaigns,Central Office of Information,M4C,10168277,"31,622.07",Paid Search,Department of Health,Tobacco Nov Paid Search,WC1X 8RX,SME,,
Cabinet Office,Central Office of Information,17/01/12,Campaigns,Central Office of Information,M4C,10168225,"95,220.96",TV Airtime,Department of Health,Tobacco Reinforcing Motivations TV campaign Nov - Dec 2011,WC1X 8RX,SME,,
Cabinet Office,Central Office of Information,17/01/12,Campaigns,Central Office of Information,M4C,10169452,"103,160.73",Press Space,Department of Health,Dementia Press campaign Nov - Dec 2011,WC1X 8RX,SME,,
Cabinet Office,Central Office of Information,17/01/12,Campaigns,Central Office of Information,M4C,10169484,"110,456.79",Radio Airtime,Department of Health,Dementia Radio campaign Nov - Dec 2011,WC1X 8RX,SME,,
Cabinet Office,Central Office of Information,17/01/12,Campaigns,Central Office of Information,M4C,10168226,"148,418.50",TV Airtime,Department of Health,Dementia TV Camapign Nov - Dec 2011,WC1X 8RX,SME,,
Cabinet Office,Central Office of Information,17/01/12,Campaigns,Central Office of Information,Profero London Ltd,10168363,"27,516.00",Production Costs,Department of Health,Change for Life - Olympics Creative Concept Development,NW1 0DU,SME,,
Cabinet Office,Central Office of Information,17/01/12,Campaigns,Central Office of Information,Data Lateral Ltd,10168346,"34,525.00",Inbound e-mail/webform handling,DH SLA: Communications  Directorate,January 2012 Customer Relationship Management mailing,EC1A 4JA,SME,,
Cabinet Office,Central Office of Information,17/01/12,Campaigns,Central Office of Information,M4C,10169489,"27,854.79",Radio Airtime,Food Standards Agency,E-Coli Scotland Radio Nov- Dec 2011,WC1X 8RX,SME,,
Cabinet Office,Central Office of Information,17/01/12,Campaigns,Central Office of Information,M4C,10169569,"29,294.91",RegPress Space,Food Standards Agency,E-Coli Wales Nov- Dec 2011,WC1X 8RX,SME,,
Cabinet Office,Central Office of Information,17/01/12,Campaigns,Central Office of Information,M4C,10169454,"48,171.74",RegPress Space,Food Standards Agency,E-Coli Scotland Reg Press Nov - Dec 2011,WC1X 8RX,SME,,
Cabinet Office,Central Office of Information,17/01/12,Campaigns,Central Office of Information,Mother Advertising Ltd,10168335,"27,110.00",Strategy Development,Government Olympic Executive � Communications,Cross-Government Project to Promote the UK & Growth,E2 7DD,Large,,
Cabinet Office,Central Office of Information,17/01/12,Campaigns,Central Office of Information,Mother Advertising Ltd,10168334,"119,385.00",Strategy Development,Government Olympic Executive � Communications,Cross-Government Project to Promote the UK & Growth,E2 7DD,Large,,
Cabinet Office,Central Office of Information,17/01/12,Campaigns,Central Office of Information,M4C,10169491,"52,801.63",Radio Airtime,HM Revenue and Customs,Taxes for Businesses Self Assessment Radio December 2011 January 2012,WC1X 8RX,SME,,
Cabinet Office,Central Office of Information,17/01/12,Campaigns,Central Office of Information,M4C,10169483,"39,056.51",Radio Airtime,NHS Blood and Transplant,Emergency Blood Radio Dec 2011,WC1X 8RX,SME,,
Cabinet Office,Central Office of Information,17/01/12,Campaigns,Central Office of Information,M4C,10169482,"53,994.71",Radio Airtime,NHS Blood and Transplant,Xmas Blood Radio Nov - Dec 2011,WC1X 8RX,SME,,
Cabinet Office,Central Office of Information,17/01/12,Direct Marketing,Central Office of Information,Howitt Ltd,10168153,"23,159.22",Retention account management/systems fees,NHS Connecting for Health,Connecting for Health Lateral 2011/12,NG17 5FB,SME,,
Cabinet Office,Central Office of Information,17/01/12,Direct Marketing,Central Office of Information,MM teleperformance Ltd,10167675,"21,874.63",Acquisition set up fees (operational),NHS Trusts and Hospitals,National Health Service Careers Contact Centre April - Mar 2012,BS1 3LG,Large,,
Cabinet Office,Central Office of Information,17/01/12,Technical Guidance,Central Office of Information,User Vision,10169510,"-31,245.00",Digital Media,Office for National Statistics,Website Useability Testing,EH2 3QA,SME,,
Cabinet Office,Central Office of Information,17/01/12,Technical Guidance,Central Office of Information,User Vision,10169194,"31,245.00",Digital Media,Office for National Statistics,Website Useability Testing,EH2 3QA,SME,,
Cabinet Office,Central Office of Information,17/01/12,Campaigns,Central Office of Information,M4C,10168257,"21,014.58",Paid Search,RAF Cranwell,INET (Internal Royal Air Force Purchase Order reference) 9 - Features and Functionality (4) - Site Refreshes,WC1X 8RX,SME,,
Cabinet Office,Central Office of Information,17/01/12,Campaigns,Central Office of Information,M4C,10168218,"56,305.94",Display,Royal Navy,Marines Digital Media Campaign,WC1X 8RX,SME,,
Cabinet Office,Central Office of Information,17/01/12,Campaigns,Central Office of Information,M4C,10168224,"167,897.12",TV Airtime,Royal Navy,"Navy Engineers 40"" TV Buying Dec 28 - Feb 5",WC1X 8RX,SME,,
Cabinet Office,Central Office of Information,17/01/12,TV/Radio Production,Central Office of Information,Smuggler,10169418,"72,181.80",Production,Royal Navy,Recruitment - Meet the Kit,W1W 8QL,SME,,
Cabinet Office,Central Office of Information,17/01/12,Campaigns,Central Office of Information,DLKWLowe,10167816,"51,710.36",Advertising Agencies,The Money Advice Service,Campaign work,SW3 3XB,Large,,
Cabinet Office,Central Office of Information,17/01/12,Campaigns,Central Office of Information,GfK NOP Ltd,10168081,"30,585.00",Research Company Costs,The Money Advice Service,Campaign Tracking,SE1 9UL,Large,,
Cabinet Office,Central Office of Information,17/01/12,Direct Marketing,Central Office of Information,DraftFCB,10168187,"22,798.00",Direct mail (list/data rental/purchase),Training and Development Agency for Schools (TDA),Recruitment 2011,SW1E 5JL,SME,,
Cabinet Office,Central Office of Information,17/01/12,Direct Marketing,Central Office of Information,DraftFCB,10168189,"26,756.66",Retention direct marketing agency fees,Training and Development Agency for Schools (TDA),Recruitment 2011,SW1E 5JL,SME,,
Cabinet Office,Central Office of Information,17/01/12,Direct Marketing,Central Office of Information,DraftFCB,10168173,"26,848.00",Direct mail (list/data rental/purchase),Training and Development Agency for Schools (TDA),Recruitment 2011,SW1E 5JL,SME,,
Cabinet Office,Central Office of Information,17/01/12,Direct Marketing,Central Office of Information,DraftFCB,10168183,"28,529.33",Direct mail (list/data rental/purchase),Training and Development Agency for Schools (TDA),Recruitment 2011,SW1E 5JL,SME,,
Cabinet Office,Central Office of Information,17/01/12,Campaigns,Central Office of Information,DraftFCB,10168240,"81,689.37",E-mail broadcast,Training and Development Agency for Schools (TDA),Recruitment 2011,SW1E 5JL,SME,,
Cabinet Office,Central Office of Information,17/01/12,Campaigns,Central Office of Information,DraftFCB,10168177,"88,860.67",E-mail broadcast,Training and Development Agency for Schools (TDA),Recruitment 2011,SW1E 5JL,SME,,
Cabinet Office,Central Office of Information,17/01/12,Campaigns,Central Office of Information,M4C,10169476,"33,222.21",Press Space,Training and Development Agency for Schools (TDA),Recruitment Media - National Specialist Press October 2011 to March 2012,WC1X 8RX,SME,,
Cabinet Office,Central Office of Information,17/01/12,Print and Paper,Central Office of Information,Nelson Bostock Communications,10168298,"38,434.00",Design and Artwork,UK Hydrographics Office,Public Relations Contract Ongoing Management,W2 4SA,SME,,
Cabinet Office,Central Office of Information,17/01/12,Campaigns,Central Office of Information,M4C,10169492,"25,060.34",Display,Visit Britain,British Broadcasting Corporation  iPlayer Sponsorship,WC1X 8RX,SME,,
Cabinet Office,Central Office of Information,17/01/12,Campaigns,Central Office of Information,M4C,10168222,"99,091.18",TV Airtime,Visit England,TV buying for Cottages for You Dec 2011,WC1X 8RX,SME,,
Cabinet Office,Central Office of Information,24/01/12,Campaigns,Central Office of Information,Broadcasting Support Services (BSS),10169392,"49,125.53",Inbound telephone handling: dedicated,"Department for Business, Innovation and Skills",Pay and Work Rights Helpline 11/12,W5 5DB,SME,,
Cabinet Office,Central Office of Information,24/01/12,Campaigns,Central Office of Information,Careline Services Ltd,10169397,"294,335.57",Inbound telephone handling: dedicated,"Department for Business, Innovation and Skills",Business Improvement Contact Centre 11/12,W4 5QB,SME,,
Cabinet Office,Central Office of Information,24/01/12,Campaigns,Central Office of Information,Dataforce Group Ltd,10169403,"30,595.51",Inbound telephone handling: dedicated,Department for Work and Pensions,Pensions Info line 2011,MK9 1EA,Large,,
Cabinet Office,Central Office of Information,24/01/12,Campaign Production,Central Office of Information,EMO Ltd,10169150,"171,702.00",Advertising Agency Fees,Department of Health,Regional Tobacco Emery McLaven Orr fees Q3,BS8 1PD,SME,,
Cabinet Office,Central Office of Information,24/01/12,PR,Central Office of Information,Freud Communication Ltd,10169111,"38,000.00",PR Agency Fees,Department of Health,Change for Life Public Relations,W1T 3EB,SME,,
Cabinet Office,Central Office of Information,24/01/12,Print and Paper,Central Office of Information,Greenshires Group Ltd,10169290,"23,240.00",Acquisition stationery and print,Department of Health,Quit Kit production - Jan/March 2012,LE4 9LF,SME,,
Cabinet Office,Central Office of Information,24/01/12,Print and Paper,Central Office of Information,Greenshires Group Ltd,10169293,"35,805.00",Acquisition stationery and print,Department of Health,Quit Kit production - Jan/March 2012,LE4 9LF,SME,,
Cabinet Office,Central Office of Information,24/01/12,Print and Paper,Central Office of Information,Greenshires Group Ltd,10169768,"223,725.00",Acquisition stationery and print,Department of Health,Quit Kit production - Jan/March 2012,LE4 9LF,SME,,
Cabinet Office,Central Office of Information,24/01/12,Campaigns,Central Office of Information,IDS UK Ltd,10169353,"45,000.00",Paid for leaflet display (e.g. POPOS),Department of Health,Bowel Cancer Roll out 2010/11,SO32 2ES,SME,,
Cabinet Office,Central Office of Information,24/01/12,Campaign Production,Central Office of Information,M&C Saatchi Ltd,10169313,"33,186.00",Advertising Agency Fees,Department of Health,Change for Life fees April-December 2011,W1F 9EE,SME,,
Cabinet Office,Central Office of Information,24/01/12,Campaign Production,Central Office of Information,M&C Saatchi Ltd,10169338,"81,995.00",Advertising Agency Fees,Department of Health,Bowel Cancer and other types of cancer Agency fees,W1F 9EE,SME,,
Cabinet Office,Central Office of Information,24/01/12,Agent/Professional Fees,Central Office of Information,Partners Andrews Aldridge Limited,10168316,"28,245.00",Acquisition direct marketing agency fees,Department of Health,Tobacco Control Direct Response TV and radio ads and Short Message Service store look up,W1W 7RT,SME,,
Cabinet Office,Central Office of Information,24/01/12,Print and Paper,Central Office of Information,Eclipse Colour Print,10169398,"81,889.00",Print,DH SLA: Communications  Directorate,Change for Life Menu Card,NN18 8NX,SME,,
Cabinet Office,Central Office of Information,24/01/12,Campaigns,Central Office of Information,DDB London LTD,10167306,"70,000.00",Advertising Agencies,DWP Marketing Communications,Planning and Saving for Later Life Campaign Work,W2 6AA,Large,,
Cabinet Office,Central Office of Information,24/01/12,Campaigns,Central Office of Information,Broadcasting Support Services (BSS),10169391,"21,638.53",Inbound telephone handling: dedicated,Home Office,Anti Social Behaviour Action Line contact centre (billing job) 11/12,W5 5DB,SME,,
Cabinet Office,Central Office of Information,24/01/12,Direct Marketing,Central Office of Information,Callcredit Marketing Solutions Limited,10169164,"29,145.00",Outbound telephone,National Apprenticeship Service,National Apprenticeship Service 2011/12,SL9 0GA,Large,,
Cabinet Office,Central Office of Information,24/01/12,Research,Central Office of Information,BMG Research,10169408,"51,900.00",Market Research,National College for Leadership of Schools and Children Services,National College for School Leadership - Annual Survey,B7 4AX,SME,,
Cabinet Office,Central Office of Information,24/01/12,Agent/Professional Fees,Central Office of Information,Direct Relations Limited,10167762,"27,460.00",Agency Fees,UK Commission for Employment and Skills,digital campaign and ancillary marketing services brief,LS12 1AL,SME,,
Cabinet Office,Central Office of Information,31/01/12,Telephone,Central Office of Information,British Telecommunications Plc,10169858,"21,147.21",Telephone,COI Internal,N/A,DH98 1BT,Large,,
Cabinet Office,Central Office of Information,31/01/12,Computer Maintenance & Support,Central Office of Information,Cable & Wireless Communication,10169154,"37,563.50",IT GSI,COI Internal,N/A,MK3 5JP,Large,,
Cabinet Office,Central Office of Information,31/01/12,Events Management,Central Office of Information,Sledge Ltd,10170042,"102,926.25",Framework Agency Costs,"Department for Business, Innovation and Skills",'Make it in Great Britain' Olympic Showcase,W6 7NH,SME,,
Cabinet Office,Central Office of Information,31/01/12,Direct Marketing,Central Office of Information,Callcredit Marketing Solutions Limited,10169176,"37,908.37",Response handling account/systems mgt fees,Department of Health,Tobacco Control National Health Service Smoking Helpline 2011-12,SL9 0GA,Large,,
Cabinet Office,Central Office of Information,31/01/12,Print and Paper,Central Office of Information,Greenshires Group Ltd,10169900,"45,000.00",Acquisition stationery and print,Department of Health,Quit Kit production - Jan/March 2012,LE4 9LF,SME,,
Cabinet Office,Central Office of Information,31/01/12,Campaign Production,Central Office of Information,Miles Calcraft Briginshaw Duffy,10169156,"27,360.00",Advertising Agency Fees,Department of Health,Dare Andy Nairne Fees,W1W 5XH,SME,,
Cabinet Office,Central Office of Information,31/01/12,Campaign Production,Central Office of Information,Miles Calcraft Briginshaw Duffy,10169184,"49,590.00",Advertising Agency Fees,Department of Health,Andy Nairne youth stratetgy fee,W1W 5XH,SME,,
Cabinet Office,Central Office of Information,31/01/12,Campaign Production,Central Office of Information,Miles Calcraft Briginshaw Duffy,10169186,"70,030.00",Advertising Agency Fees,Department of Health,Big Quit,W1W 5XH,SME,,
Cabinet Office,Central Office of Information,31/01/12,Campaign Production,Central Office of Information,Miles Calcraft Briginshaw Duffy,10169182,"106,345.00",Advertising Agency Fees,Department of Health,Secondhand Smoke,W1W 5XH,SME,,
Cabinet Office,Central Office of Information,31/01/12,Postage (Non Vatable),Central Office of Information,Royal Mail,10169797,"59,459.00",Postage (non-vatable),Department of Health,Tobacco Control Fulfilment,PE4 5BR,Large,,
Cabinet Office,Central Office of Information,31/01/12,Campaigns,Central Office of Information,Holden Pearmain Research Ltd,10169977,"24,875.00",Research Company Costs,HMRC Communications and Marketing,Communication Lab,KT13 0BG,SME,,
Cabinet Office,Central Office of Information,31/01/12,Direct Marketing,Central Office of Information,Tullo Marshall Warren Ltd,10169693,"23,796.00",Retention direct marketing agency fees,NHS Blood and Transplant,New Year's Resolution Campaign (lapsed and enrolled donors) - November 2011,SW3 4NX,SME,,
Cabinet Office,Central Office of Information,31/01/12,TV/Radio Production,Central Office of Information,Rogue Films Ltd,10169840,"92,057.80",Production,Training and Development Agency for Schools (TDA),Teacher Recruitment Campaign 2012,WIW 7BQ,SME,,
